lending/lending_fUSD_20260104
["ID","MTS","AMOUNT","RATE_DAILY","PERIOD"]
[400385534,1767484801308,300.0,0.00017999,2]
[400385535,1767484801355,1200.0,0.00017999,2]
[400385536,1767484817251,300.0,0.00043225,120]
[400385537,1767484817859,311.1,0.00043225,120]
[400385538,1767484834036,-151.0,0.00018,2]
[400385539,1767484834127,-151.0,0.00018,2]
[400385540,1767484834227,-151.0,0.00018,2]
[400385541,1767484834339,-151.0,0.00018,2]
[400385542,1767484834486,-151.0,0.00018,2]
[400385543,1767484834585,-201.89175405,0.00018,2]
[400385544,1767484865044,515.9719089,0.000179,2]
[400385545,1767484873637,246.9760494,0.000179,2]
[400385546,1767484894324,1241.7,0.0001764,2]
[400385547,1767484896236,500.0,0.000179,2]
[400385548,1767484921291,422.23,0.00017999,2]
[400385549,1767484921414,422.23,0.00017999,2]
[400385550,1767484921646,422.23,0.00017999,2]
[400385551,1767484921904,422.23,0.00017999,2]
[400385552,1767484922155,422.23,0.00017999,2]
[400385553,1767484922396,422.23,0.00017999,2]
[400385554,1767484922909,422.23,0.00017999,2]
[400385555,1767484923142,422.23,0.00017999,2]
[400385556,1767484923381,422.23,0.00017999,2]
[400385557,1767484923612,422.23,0.00017999,2]
[400385558,1767484923827,422.23,0.00017999,2]
[400385559,1767484924052,422.23,0.00017999,2]
[400385560,1767484924288,422.23,0.00017999,2]
[400385561,1767484924511,422.23,0.00017999,2]
[400385562,1767484924741,422.23,0.00017999,2]
[400385563,1767484924982,422.23,0.00017999,2]
[400385564,1767484925225,422.23,0.00017999,2]
[400385565,1767484925481,422.23,0.00017999,2]
[400385566,1767484925711,422.23,0.00017999,2]
[400385567,1767484926030,422.23,0.00017999,2]
[400385568,1767484926266,422.23,0.00017999,2]
[400385569,1767484926490,422.23,0.00017999,2]
[400385570,1767484926731,422.23,0.00017999,2]
[400385571,1767484927002,422.24229763,0.00017999,2]
[400385572,1767484985582,1075.74,9.928e-05,2]
[400385573,1767484985779,1075.74,0.00010451,2]
[400385574,1767484986200,1075.74,0.00010973,2]
[400385575,1767484986612,1075.74,0.00011496,2]
[400385576,1767484990926,1075.74,0.00012018,2]
[400385577,1767484991132,1075.74,0.00012541,2]
[400385578,1767484991329,1075.74,0.00013064,2]
[400385579,1767484991524,1075.74,0.00013586,2]
[400385580,1767484991733,1075.74,0.00014109,2]
[400385581,1767484991942,1075.74,0.00014631,2]
[400385582,1767484992138,1075.74,0.00015154,2]
[400385583,1767484992349,1075.74,0.00015676,2]
[400385584,1767484992565,1075.74,0.00016199,2]
[400385585,1767484992772,1075.74,0.00016721,2]
[400385586,1767484992979,1075.74,0.00017244,2]
[400385587,1767484993204,1075.74,0.00017766,2]
[400385588,1767485045084,500.0,0.000179,2]
[400385590,1767485079331,150.0,0.00017905,2]
[400385591,1767485079546,150.0,0.00017967,2]
[400385592,1767485079601,150.0,0.00017937,2]
[400385593,1767485101213,300.0,0.00017999,2]
[400385594,1767485101282,1200.0,0.00017999,2]
[400385595,1767485125319,10525.39229169,0.000179,2]
[400385597,1767485131154,-576.8058892,0.00018,2]
[400385598,1767485145802,451.47542027,0.000179,2]
[400385600,1767485195043,273.1107,0.000179,2]
[400385601,1767485209555,-863025.265241,0.00018,2]
[400385602,1767485209580,-6800.0737317,0.00018,2]
[400385603,1767485209607,-5451.7298644,0.00018,2]
[400385604,1767485209632,-494.51525855,0.00018,2]
[400385605,1767485209658,-304.0,0.00018,2]
[400385606,1767485209683,-220.82894331,0.00018,2]
[400385607,1767485209707,-220.82894331,0.00018,2]
[400385608,1767485209733,-220.82894331,0.00018,2]
[400385609,1767485209759,-1380.13,0.00018,2]
[400385610,1767485209784,-11028.100631,0.00018,2]
[400385611,1767485215916,-1380.13,0.00018,2]
[400385612,1767485232122,-301.76129982,0.00018,2]
[400385613,1767485232143,-194.12710095,0.00018,2]
[400385614,1767485232165,-195.0,0.00018,2]
[400385615,1767485232185,-986.3234634,0.00018,2]
[400385617,1767485351218,-300.0,0.00018,2]
[400385618,1767485351240,-300.0,0.00018,2]
[400385619,1767485351264,-300.0,0.00018,2]
[400385620,1767485351285,-300.0,0.00018,2]
[400385621,1767485351309,-500.0,0.00018026,2]
[400385622,1767485351333,-444.7827425,0.00018026,2]
[400385623,1767485351360,-500.0,0.00018026,2]
[400385624,1767485351390,-258.88235335,0.00018026,2]
[400385625,1767485351415,-611.15807998,0.00018026,2]
[400385626,1767485351436,-1000.0,0.00018026,2]
[400385627,1767485351458,-24412.10112356,0.00018027,2]
[400385628,1767485356120,-16826.44151942,0.00018027,2]
[400385629,1767485357192,-5352.482072,0.00018027,2]
[400385630,1767485363131,-30612.60625983,0.00018027,2]
[400385631,1767485367100,-3313.556792,0.00018027,2]
[400385632,1767485367179,-32586.49565139,0.00018027,2]
[400385640,1767485432262,-500.0,0.00018026,2]
[400385641,1767485432274,-500.0,0.00018026,2]
[400385642,1767485432284,-459.02291598,0.00018026,2]
[400385643,1767485432294,-500.0,0.00018026,2]
[400385644,1767485432304,-500.0,0.00018026,2]
[400385645,1767485432315,-500.0,0.00018026,2]
[400385646,1767485432325,-500.0,0.00018026,2]
[400385647,1767485432335,-300.0,0.00018026,2]
[400385648,1767485432346,-1200.0,0.00018026,2]
[400385649,1767485432356,-304.0,0.00018026,2]
[400385650,1767485432366,-500.0,0.00018026,2]
[400385651,1767485432377,-300.0,0.00018027,2]
[400385652,1767485432388,-32546.4102062,0.00018027,2]
[400385653,1767485432398,-1380.13,0.00018274,2]
[400385654,1767485432409,-1075.74,0.00018289,2]
[400385655,1767485432419,-300.0,0.00018381,2]
[400385656,1767485432431,-382.48246392,0.00018381,2]
[400385657,1767485432441,-1380.13,0.00018548,2]
[400385658,1767485432451,-166.66,0.00018752,2]
[400385659,1767485432461,-1075.74,0.00018812,2]
[400385660,1767485432471,-1380.13,0.00018822,2]
[400385661,1767485432481,-9731.5539651,0.000189,2]
[400385662,1767485432491,-761.03048858,0.00019,2]
[400385663,1767485432502,-650.14823932,0.00019,2]
[400385664,1767485432513,-158.0415081,0.00019,2]
[400385665,1767485432524,-1380.13,0.00019096,2]
[400385666,1767485432534,-166.66,0.00019147,2]
[400385667,1767485432544,-151.0,0.00019223,2]
[400385669,1767485432555,-151.0,0.00019232,2]
[400385670,1767485432564,-151.0,0.00019271,2]
[400385672,1767485432574,-151.0,0.00019271,2]
[400385674,1767485432584,-198.57,0.00019297,2]
[400385676,1767485432595,-151.0,0.00019327,2]
[400385678,1767485432604,-151.0,0.00019327,2]
[400385681,1767485432618,-1075.74,0.00019334,2]
[400385683,1767485432627,-1380.13,0.0001937,2]
[400385685,1767485432637,-151.0,0.00019371,2]
[400385687,1767485432648,-975.89,0.00019384,2]
[400385689,1767485432658,-166.66,0.00019542,2]
[400385690,1767485432668,-1380.13,0.00019644,2]
[400385692,1767485432678,-2109.98,0.00019651,2]
[400385694,1767485432688,-999.0,0.00019651,3]
[400385697,1767485432699,-420.0,0.00019668,2]
[400385698,1767485432708,-150.0,0.00019694,2]
[400385700,1767485432717,-1680.0,0.00019764,2]
[400385703,1767485432728,-20000.0,0.00019788,2]
[400385705,1767485432738,-168.11,0.00019798,2]
[400385707,1767485432748,-500.0,0.000198,2]
[400385709,1767485432757,-193.0,0.000198,2]
[400385711,1767485432767,-289.08751573,0.000198,2]
[400385713,1767485432776,-438.12727128,0.000198,2]
[400385715,1767485432786,-250.0,0.000198,2]
[400385717,1767485432795,-2500.0,0.000198,2]
[400385719,1767485432809,-300.0,0.000198,2]
[400385721,1767485432819,-250.0,0.000198,2]
[400385723,1767485432828,-250.0,0.000198,2]
[400385725,1767485432843,-10392.27,0.00019803,2]
[400385727,1767485432854,-500.0,0.00019808,2]
[400385729,1767485432864,-150.0,0.00019808,2]
[400385731,1767485432873,-218.20524744,0.00019808,2]
[400385733,1767485432883,-500.0,0.00019808,2]
[400385735,1767485432893,-500.0,0.00019808,2]
[400385737,1767485432902,-500.0,0.00019808,2]
[400385739,1767485432912,-1228.45,0.00019812,2]
[400385741,1767485432922,-945.25,0.00019829,2]
[400385743,1767485432933,-300.0,0.00019829,2]
[400385745,1767485432943,-193.0,0.00019829,2]
[400385747,1767485432952,-893.46,0.00019831,2]
[400385750,1767485432963,-200.0,0.00019832,2]
[400385752,1767485432972,-893.02,0.00019853,2]
[400385754,1767485432981,-200.0,0.00019855,2]
[400385755,1767485432991,-1075.74,0.00019857,2]
[400385758,1767485433000,-1380.13,0.00019918,2]
[400385760,1767485433012,-166.66,0.00019937,2]
[400385762,1767485433022,-500.0,0.00019945,2]
[400385764,1767485433032,-150.0,0.00019945,2]
[400385766,1767485433045,-515.48135853,0.00019945,2]
[400385768,1767485433056,-500.0,0.00019945,2]
[400385770,1767485433066,-500.0,0.00019945,2]
[400385772,1767485433076,-500.0,0.00020054,2]
[400385774,1767485433087,-150.0,0.00020054,2]
[400385776,1767485433097,-200.0,0.00020054,2]
[400385778,1767485433106,-200.0,0.00020054,2]
[400385780,1767485433119,-228.75539559,0.00020054,2]
[400385782,1767485433128,-500.0,0.00020074,2]
[400385783,1767485433138,-500.0,0.00020082,2]
[400385786,1767485433148,-237.83643607,0.00020082,2]
[400385802,1767485433427,-550.0,0.00020082,2]
[400385803,1767485433442,-500.0,0.00020082,2]
[400385805,1767485433453,-413.0,0.00020082,2]
[400385806,1767485433464,-397.81,0.00020187,2]
[400385809,1767485433475,-500.0,0.00020191,2]
[400385811,1767485433485,-1380.13,0.00020192,2]
[400385813,1767485433495,-500.0,0.00020219,2]
[400385814,1767485433505,-175.38136853,0.00020219,2]
[400385815,1767485433515,-423.35993407,0.00020328,2]
[400385816,1767485433525,-1216.4453577,0.00020328,2]
[400385817,1767485433535,-166.66,0.00020331,2]
[400385818,1767485433545,-2768.6504878,0.00020338,2]
[400385819,1767485433555,-500.0,0.00020348,2]
[400385820,1767485433566,-244.96387073,0.00020356,2]
[400385821,1767485433576,-32498.928716,0.00020359,2]
[400385822,1767485433585,-1613.69265289,0.0002041,30]
[400385823,1767485433595,-1517.3015407,0.00020415,2]
[400385824,1767485433606,-150.0,0.00020415,2]
[400385825,1767485433616,-500.0,0.00020415,2]
[400385826,1767485433627,-150.0,0.00020415,2]
[400385827,1767485433637,-150.0,0.00020415,2]
[400385828,1767485433647,-150.0,0.00020415,2]
[400385829,1767485433658,-500.0,0.00020415,2]
[400385830,1767485433668,-245.4934071,0.00020415,2]
[400385831,1767485433678,-500.0,0.00020415,2]
[400385832,1767485433693,-1380.13,0.00020466,2]
[400385833,1767485433704,-869.46,0.00020473,2]
[400385834,1767485433714,-150.0,0.00020552,2]
[400385835,1767485433725,-500.0,0.00020552,2]
[400385836,1767485433750,-152.86476692,0.00020552,2]
[400385837,1767485433760,-177.88806909,0.00020552,2]
[400385838,1767485433770,-150.0,0.00020552,2]
[400385839,1767485433780,-500.0,0.00020552,2]
[400385840,1767485433790,-510.81342354,0.00020552,2]
[400385841,1767485433800,-150.0,0.00020605,2]
[400385842,1767485433811,-500.0,0.00020605,2]
[400385843,1767485433826,-155.90686905,0.00020605,2]
[400385844,1767485433840,-500.0,0.00020622,2]
[400385845,1767485433850,-10525.39229166,0.00020689,2]
[400385846,1767485433860,-223.32130998,0.00020689,2]
[400385847,1767485433870,-500.0,0.00020689,2]
[400385848,1767485433879,-357.10234457,0.00020689,2]
[400385849,1767485433889,-150.0,0.00020689,2]
[400385850,1767485433899,-166.66,0.00020726,2]
[400385851,1767485433909,-1380.13,0.0002074,2]
[400385852,1767485433919,-152.29927127,0.00020742,2]
[400385853,1767485433929,-500.0,0.00020742,2]
[400385854,1767485433939,-500.0,0.00020826,2]
[400385855,1767485433949,-150.0,0.00020826,2]
[400385856,1767485433958,-271.4256474,0.00020848,2]
[400385857,1767485433969,-617.7694267,0.00020859,2]
[400385858,1767485433979,-500.0,0.00020879,2]
[400385859,1767485433992,-7251.491169,0.00020879,2]
[400385860,1767485434011,-500.0,0.0002088,2]
[400385861,1767485434021,-500.0,0.00020896,2]
[400385862,1767485434030,-1868.82750158,0.000209,30]
[400385863,1767485434042,-338.5557357,0.00020953,2]
[400385864,1767485434054,-500.0,0.00020963,2]
[400385865,1767485434064,-150.0,0.00020963,2]
[400385866,1767485434074,-1380.13,0.00021014,2]
[400385867,1767485434088,-171.16627416,0.00021016,2]
[400385868,1767485434099,-500.0,0.00021017,2]
[400385869,1767485434110,-500.0,0.00021065,2]
[400385870,1767485434120,-5172.91,0.00021066,2]
[400385871,1767485434131,-468.15483781,0.000211,2]
[400385872,1767485434140,-215.39691437,0.000211,2]
[400385873,1767485434150,-418.06156183,0.00021154,2]
[400385874,1767485434160,-500.0,0.0002117,2]
[400385875,1767485434171,-590.19375955,0.00021202,2]
[400385876,1767485434182,-1380.13,0.00021288,2]
[400385877,1767485434193,-869.46,0.00021404,2]
[400385878,1767485434203,-500.0,0.00021444,2]
[400385879,1767485434213,-3240.0,0.00021447,2]
[400385880,1767485434223,-346.0,0.00021459,2]
[400385881,1767485434233,-1380.13,0.00021562,2]
[400385882,1767485434243,-9731.55396502,0.00021578,2]
[400385883,1767485434254,-2351.0,0.00021671,2]
[400385884,1767485434264,-150.0,0.00021684,2]
[400385885,1767485434274,-500.0,0.00021718,2]
[400385886,1767485434284,-250.91,0.00021835,2]
[400385887,1767485434295,-5000.0,0.00021918,2]
[400385888,1767485434305,-61370.87519277,0.0002199,2]
[400385889,1767485434355,-930.53007161,0.0002199,2]
[400385890,1767485434367,-1790.78825886,0.0002199,2]
[400385891,1767485434379,-319.89614938,0.0002199,2]
[400385892,1767485434391,-1271.76772929,0.0002199,2]
[400385893,1767485434403,-533.34640399,0.0002199,2]
[400385894,1767485434415,-400.0,0.0002199,2]
[400385895,1767485434427,-30885.5849171,0.0002199,2]
[400385896,1767485434439,-500.0,0.0002199,2]
[400385897,1767485434482,-500.0,0.00020551,2]
[400385898,1767485434492,-290.55674584,0.00020551,2]
[400385899,1767485434508,-2882.7403192,0.0002199,2]
[400385900,1767485434520,-5158.46961615,0.0002199,2]
[400385901,1767485434532,-542.91191829,0.0002199,2]
[400385902,1767485434570,-251.94830573,0.00020551,2]
[400385903,1767485434580,-179.46058623,0.00020551,2]
[400385904,1767485434590,-627.41160738,0.0002199,2]
[400385905,1767485434602,-835.60817854,0.0002199,2]
[400385915,1767485438366,-526.31155726,0.00020551,2]
[400385917,1767485438381,-1329.37551049,0.0002199,2]
[400385918,1767485438540,-11281.40412695,0.0002199,2]
[400385919,1767485438551,-151.0,0.0002199,2]
[400385920,1767485438562,-500.0,0.00021992,2]
[400385921,1767485438572,-4168.32941159,0.00022,2]
[400385922,1767485438582,-1380.25,0.0002211,2]
[400385923,1767485438593,-1303.53,0.00022158,2]
[400385924,1767485438604,-2023.0,0.00022191,2]
[400385925,1767485438615,-500.0,0.00022266,2]
[400385926,1767485438625,-869.46,0.00022335,2]
[400385927,1767485438635,-294.07339406,0.0002248,2]
[400385928,1767485438646,-500.0,0.0002254,2]
[400385930,1767485438656,-205.91143912,0.00022814,2]
[400385932,1767485438666,-7051.69089798,0.00022909,2]
[400385935,1767485438682,-34156.12889018,0.00022909,2]
[400385937,1767485438694,-717.25021184,0.00022909,2]
[400385939,1767485438704,-288.92,0.00023016,2]
[400385941,1767485438719,-225.2,0.0002303,2]
[400385943,1767485438729,-2864.01,0.00023116,2]
[400385945,1767485438739,-6214.27,0.00023142,2]
[400385947,1767485438749,-500.0,0.00023205,2]
[400385949,1767485438759,-869.46,0.00023265,2]
[400385951,1767485438770,-161.22,0.00023396,2]
[400385954,1767485438780,-10525.39229166,0.00023478,2]
[400385956,1767485438789,-1333.97,0.00023539,2]
[400385957,1767485438799,-1807.0,0.00023757,2]
[400385958,1767485438810,-168.11,0.00023758,2]
[400385960,1767485438819,-3292.0,0.0002376,2]
[400385962,1767485438830,-288.92,0.00024167,2]
[400385964,1767485438840,-869.46,0.00024196,2]
[400385966,1767485438850,-9731.55396502,0.00024256,2]
[400385967,1767485438860,-200.0,0.00024458,2]
[400385968,1767485438871,-254.31522783,0.00024458,2]
[400385969,1767485438882,-151.13770536,0.00024458,2]
[400385970,1767485438893,-161.22,0.00025067,2]
[400385971,1767485438905,-869.46,0.00025126,2]
[400385972,1767485438919,-502.0,0.00025315,2]
[400385973,1767485438933,-288.92,0.00025318,2]
[400385974,1767485438944,-514.35,0.00025381,2]
[400385975,1767485438955,-4609.0,0.00026052,2]
[400385976,1767485438966,-869.46,0.00026057,2]
[400385977,1767485438977,-1294.97440827,0.00026267,2]
[400385978,1767485438990,-2416.06200004,0.00026267,2]
[400385980,1767485439003,-3927.48464529,0.00026267,2]
[400385982,1767485439017,-2886.87123806,0.00026267,2]
[400385984,1767485439028,-288.92,0.00026469,2]
[400385987,1767485439042,-397.81,0.00026676,2]
[400385989,1767485439053,-161.22,0.00026738,2]
[400385991,1767485439064,-438.52173782,0.00026933,2]
[400386074,1767485440471,-300.0,0.00026933,2]
[400386081,1767485440696,-275.47155726,0.00026933,2]
[400386083,1767485440708,-298.48554604,0.00026933,2]
[400386085,1767485440719,-268.84860505,0.00026933,2]
[400386087,1767485440732,-794.23097468,0.00026933,2]
[400386090,1767485440745,-507.07,0.00026933,2]
[400386092,1767485440761,-941.8843199,0.00026933,2]
[400386095,1767485440775,-5907.04122427,0.00026933,2]
[400386097,1767485440785,-869.46,0.00026988,2]
[400386099,1767485440795,-8063.87,0.00027021,2]
[400386101,1767485440804,-226.95,0.00027397,30]
[400386102,1767485440815,-2109.98,0.00027512,2]
[400386104,1767485440825,-288.92,0.0002762,2]
[400386106,1767485440834,-869.46,0.00027918,2]
[400386108,1767485440845,-161.22,0.00028409,2]
[400386110,1767485440855,-500.0,0.00028548,2]
[400386112,1767485440865,-1002.78398973,0.00028564,2]
[400386114,1767485440879,-5450.21601027,0.00028564,2]
[400386115,1767485440889,-869.46,0.00028849,2]
[400386116,1767485440899,-7031.16,0.00028873,2]
[400386117,1767485440908,-10525.39229166,0.00029056,2]
[400386118,1767485440927,-9731.55396502,0.00029611,2]
[400386119,1767485440948,-869.46,0.00029779,2]
[400386120,1767485440959,-193.72,0.00029828,14]
[400386121,1767485440969,-600.0,0.0003,2]
[400386122,1767485440979,-161.22,0.00030081,2]
[400386124,1767485440989,-500.0,0.00030239,20]
[400386126,1767485440999,-154.98,0.00030358,2]
[400386128,1767485441010,-178.61,0.00030424,14]
[400386130,1767485441019,-869.46,0.0003071,2]
[400386132,1767485441030,-1363.0,0.00031319,3]
[400386134,1767485441042,-10223.1992137,0.00031416,3]
[400386136,1767485441052,-499.99,0.00031426,2]
[400386138,1767485441062,-2050.94,0.00031426,10]
[400386140,1767485441072,-2359.17,0.00031426,2]
[400386142,1767485441083,-9999.99,0.00031426,2]
[400386144,1767485441093,-9999.99,0.00031426,2]
[400386146,1767485441104,-7627.13,0.00031426,2]
[400386148,1767485441115,-150.99,0.00031426,2]
[400386150,1767485441125,-9999.99,0.00031426,2]
[400386152,1767485441135,-4097.6,0.00031426,2]
[400386154,1767485441145,-1546.7,0.00031426,2]
[400386156,1767485441155,-9999.99,0.00031426,2]
[400386158,1767485441170,-9999.99,0.00031426,2]
[400386160,1767485441180,-150.99,0.00031426,2]
[400386162,1767485441196,-1000.0,0.00031507,2]
[400386165,1767485441206,-166.82,0.00031564,2]
[400386167,1767485441216,-869.46,0.00031641,2]
[400386169,1767485441226,-226.95,0.00031723,30]
[400386171,1767485441237,-161.22,0.00031752,2]
[400386173,1767485441247,-514.995,0.00031816,30]
[400386175,1767485441257,-10525.39229166,0.00031844,2]
[400386177,1767485441267,-9731.55396502,0.00032289,2]
[400386179,1767485441277,-2555.79980342,0.00032561,3]
[400386181,1767485441287,-869.46,0.00032571,2]
[400386184,1767485441302,-397.81,0.00033165,2]
[400386186,1767485441312,-1303.53,0.00033237,120]
[400386188,1767485441322,-161.22,0.00033423,2]
[400386190,1767485441331,-869.46,0.00033502,2]
[400386192,1767485441341,-166.82,0.00034168,2]
[400386194,1767485441351,-869.46,0.00034432,2]
[400386196,1767485441361,-10525.39229166,0.00034633,2]
[400386198,1767485441371,-2555.79980342,0.00034842,3]
[400386200,1767485441381,-6499.77085105,0.00034852,60]
[400386202,1767485441391,-9731.55396502,0.00034967,2]
[400386204,1767485441401,-600.0,0.00035,10]
[400386206,1767485441413,-2555.79980342,0.00035022,3]
[400386208,1767485441423,-1403.0,0.00035031,2]
[400386211,1767485441435,-1328.0,0.00035031,2]
[400386213,1767485441444,-1187.894,0.00035032,2]
[400386215,1767485441456,-431.0,0.00035032,2]
[400386217,1767485441466,-2434.0,0.00035034,2]
[400386219,1767485441475,-712.861,0.00035034,2]
[400386221,1767485441485,-6545.0,0.00035034,2]
[400386223,1767485441495,-161.22,0.00035094,2]
[400386225,1767485441504,-208.74426,0.0003522,64]
[400386227,1767485441514,-208.74426,0.0003522,64]
[400386229,1767485441523,-208.74427,0.0003522,64]
[400386231,1767485441533,-208.74427,0.0003522,64]
[400386233,1767485441543,-208.74426,0.0003522,64]
[400386235,1767485441552,-208.74426,0.0003522,64]
[400386237,1767485441561,-208.74426,0.0003522,64]
[400386239,1767485441571,-208.74426,0.0003522,64]
[400386241,1767485441580,-208.74427,0.0003522,64]
[400386243,1767485441590,-208.74426,0.0003522,64]
[400386245,1767485441600,-2555.79980342,0.00035247,3]
[400386247,1767485441610,-20359.97448696,0.00035257,30]
[400386249,1767485441620,-869.46,0.00035363,2]
[400386251,1767485441630,-1000.0,0.00035445,2]
[400386253,1767485441639,-150.0,0.00035616,111]
[400386255,1767485441650,-1613.0,0.00035855,7]
[400386258,1767485441665,-2555.79980342,0.00035879,3]
[400386260,1767485441675,-1613.0,0.00035889,120]
[400386262,1767485441688,-198.0,0.00036,2]
[400386264,1767485441698,-1613.0,0.00036034,2]
[400386266,1767485441708,-226.95,0.00036049,30]
[400386268,1767485441717,-435.0,0.00036326,7]
[400386270,1767485441727,-833.13,0.00036415,2]
[400386272,1767485441737,-435.0,0.00036454,2]
[400386274,1767485441746,-500.0,0.00036551,120]
[400386276,1767485441756,-1612.0,0.00036558,7]
[400386278,1767485441765,-435.0,0.00036567,120]
[400386280,1767485441775,-1612.0,0.0003659,120]
[400386282,1767485441786,-435.0,0.00036599,2]
[400386284,1767485441796,-1612.0,0.00036632,7]
[400386286,1767485441806,-193.237428,0.00036651,120]
[400386288,1767485441816,-435.0,0.00036656,2]
[400386291,1767485441827,-435.0,0.00036673,7]
[400386293,1767485441837,-166.82,0.00036773,2]
[400386295,1767485441846,-435.0,0.00036807,2]
[400386297,1767485441856,-171.90213036,0.00037,2]
[400386299,1767485441867,-151.0,0.00037096,14]
[400386301,1767485441876,-435.0,0.00037099,2]
[400386303,1767485441886,-150.0,0.00037103,2]
[400386305,1767485441895,-150.0,0.00037103,2]
[400386307,1767485441905,-150.621,0.00037103,2]
[400386309,1767485441914,-435.0,0.00037118,7]
[400386311,1767485441924,-435.0,0.00037142,7]
[400386313,1767485441935,-435.0,0.00037157,2]
[400386315,1767485441945,-192.49708535,0.000372,120]
[400386317,1767485441955,-2555.79980342,0.00037269,4]
[400386319,1767485441967,-435.0,0.00037279,120]
[400386321,1767485441977,-10223.1992137,0.00037318,4]
[400386322,1767485441987,-71378.03852404,0.00037328,2]
[400386323,1767485441998,-2555.79980342,0.00037412,4]
[400386324,1767485442007,-10525.39229166,0.00037422,2]
[400386325,1767485442018,-3676.0,0.00037499,2]
[400386326,1767485442032,-435.0,0.00037524,7]
[400386327,1767485442043,-500.0,0.00037589,120]
[400386328,1767485442054,-500.0,0.00037589,120]
[400386329,1767485442066,-435.0,0.00037592,2]
[400386330,1767485442076,-500.0,0.00037598,120]
[400386331,1767485442086,-500.0,0.00037598,120]
[400386332,1767485442096,-500.0,0.00037598,120]
[400386333,1767485442106,-500.0,0.00037598,120]
[400386334,1767485442117,-500.0,0.00037598,120]
[400386336,1767485442128,-500.0,0.00037598,120]
[400386338,1767485442138,-535.35055637,0.00037598,60]
[400386340,1767485442148,-502.50439874,0.00037598,120]
[400386341,1767485442158,-500.0,0.00037598,120]
[400386342,1767485442168,-500.0,0.00037598,120]
[400386343,1767485442179,-500.0,0.00037598,120]
[400386344,1767485442192,-500.0,0.00037598,120]
[400386345,1767485442203,-160.2054144,0.00037617,2]
[400386346,1767485442213,-9731.55396502,0.00037644,2]
[400386347,1767485442224,-435.0,0.00037698,120]
[400386348,1767485442234,-2555.79980342,0.00037721,4]
[400386349,1767485442245,-435.0,0.00037731,2]
[400386350,1767485442256,-435.0,0.00037821,2]
[400386351,1767485442267,-2432.0,0.00038034,2]
[400386352,1767485442278,-4635.243,0.00038034,2]
[400386353,1767485442288,-592.51,0.00038164,2]
[400386354,1767485442299,-387.48,0.00038164,2]
[400386355,1767485442309,-150.0,0.00038274,2]
[400386356,1767485442320,-555.41,0.00038274,2]
[400386357,1767485442330,-555.41,0.00038274,2]
[400386358,1767485442341,-555.41,0.00038274,2]
[400386359,1767485442351,-231.824356,0.00038356,120]
[400386360,1767485442362,-151.0,0.00038356,120]
[400386361,1767485442374,-151.0,0.00038356,120]
[400386362,1767485442385,-151.0,0.00038356,120]
[400386363,1767485442404,-151.0,0.00038356,120]
[400386364,1767485442414,-151.0,0.00038356,120]
[400386365,1767485442426,-151.0,0.00038356,120]
[400386366,1767485442447,-151.0,0.00038356,120]
[400386367,1767485442457,-151.0,0.00038356,120]
[400386368,1767485442467,-291.801944,0.00038356,120]
[400386369,1767485442478,-151.0,0.00038356,120]
[400386370,1767485442488,-2555.79980342,0.00038531,4]